Workbook

Sheet Web Report
A1: MOC SUPREME HOSPITAL REPORT
A2: Date: 9/15/2017
A3: Grand | B3: Goal | C3: Reports | D3: Visits | E3: Cooties | F3: Patients | G3: Hours | H3: Miles | I3: Gifts | J3: Total Monies | K3: Percentage
A4: SUPREME HOSPITAL DISTRICT#1 - Gary Dressel
A5: DE | B5: 32000 | C5: 6 | D5: 40 | E5: 58 | F5: 263 | G5: 245 | H5: 4055 | I5: 466 | J5: 6558.45 | K5: =IF(B5,J5/B5,"") -> 0.2049515625
A6: DC | B6: 0 | K6: =IF(B6,J6/B6,"") -> 
A7: MD | B7: 81000 | C7: 17 | D7: 91 | E7: 194 | F7: 854 | G7: 854 | H7: 8871 | I7: 6774.19 | J7: 27273.83 | K7: 0.3367139506
A8: PA | B8: 127250 | C8: 3 | D8: 37 | E8: 67 | F8: 433 | G8: 294 | H8: 4399 | I8: 1165 | J8: 8410.56 | K8: 0.06609477407
A9: VA | B9: 88000 | C9: 6 | D9: 37 | E9: 101 | F9: 289 | G9: 481 | H9: 5043 | I9: 1359 | J9: 12911.57 | K9: 0.1467223864
A10: WV | B10: 12500 | C10: 3 | D10: 35 | E10: 35 | F10: 994 | G10: 298 | H10: 845 | I10: 183.75 | J10: 7021.95 | K10: 0.561756
A11: TOTALS | B11: =SUM(B5:B10) -> 340750 | C11: =SUM(C5:C10) -> 35 | D11: 240 | E11: 455 | F11: 2833 | G11: 2172 | H11: 23213 | I11: 9947.94 | J11: 62176.36 | K11: 0.1824691416
A12: 291
A13: AL | B13: 11500 | K13: =IF(B13,J13/B13,"") -> 0
A14: FL | B14: 168125 | C14: 20 | D14: 100 | E14: 270 | F14: 1977 | G14: 1122 | H14: 21457 | I14: 3148.3 | J14: 31453.38 | K14: =IF(B14,J14/B14,"") -> 0.1870833011
A15: GA | B15: 1359 | K15: 0
A16: LA | B16: 27750 | K16: 0
A17: MS | B17: 54000 | C17: 6 | D17: 134 | E17: 178 | F17: 735 | G17: 589 | H17: 9581 | I17: 6383.88 | J17: 21007.17 | K17: 0.3890216667
A18: NC | B18: 72250 | C18: 7 | D18: 58 | E18: 162 | F18: 403 | G18: 382 | H18: 4496 | I18: 476.5 | J18: 9720.04 | K18: 0.1345334256
A19: SC | B19: 52250 | C19: 15 | D19: 107 | E19: 306 | F19: 985 | G19: 1117 | H19: 13870 | I19: 1617.12 | J19: 28747.27 | K19: 0.5501869856
A20: TN | B20: 51125 | K20: 0
A21: TOTALS | B21: =SUM(B13:B20) -> 438359 | C21: =SUM(C13:C20) -> 48 | D21: 399 | E21: 916 | F21: 4100 | G21: 3210 | H21: 49404 | I21: 11625.8 | J21: 90927.86 | K21: 0.2074278388
A22: SUPREME HOSPITAL DISTRICT#3 - Jeff Keen
A23: IL | B23: 68625 | C23: 17 | D23: 80 | E23: 155 | F23: 2766 | G23: 615 | H23: 7443 | I23: 1865 | J23: 16775.27 | K23: =IF(B23,J23/B23,"") -> 0.2444483789
A24: IN | B24: 0 | K24: =IF(B24,J24/B24,"") -> 
A25: KY | B25: 48375 | C25: 7 | D25: 62 | E25: 40 | F25: 372 | G25: 143 | H25: 2021 | I25: 301.56 | J25: 3809.15 | K25: 0.07874211886
A26: MI | B26: 62375 | C26: 9 | D26: 60 | E26: 44 | F26: 1254 | G26: 705.5 | H26: 2227 | I26: 7494.09 | J26: 23714.9 | K26: 0.3801987976
A27: OH | B27: 203000 | C27: 352 | D27: 441 | E27: 1037 | F27: 2463 | G27: 2896.6 | H27: 16328 | I27: 2718 | J27: 70322.25 | K27: 0.3464150246
A28: WI | B28: 95000 | C28: 33 | D28: 183 | E28: 382 | F28: 7957 | G28: 1891 | H28: 15875 | I28: 10550 | J28: 55414.55 | K28: 0.5833110526
A29: TOTALS | B29: =SUM(B23:B28) -> 477375 | C29: =SUM(C23:C28) -> 418 | D29: 826 | E29: 1658 | F29: 14812 | G29: 6251.1 | H29: 43894 | I29: 22928.65 | J29: 170036.12 | K29: 0.3561898298
A30: SUPREME HOSPITAL DISTRICT#4 -Neil Johnson
A31: IA | B31: 24500 | C31: 20 | D31: 196 | E31: 289 | F31: 6879 | G31: 1829 | H31: 11825 | I31: 6862.76 | J31: 49762.21 | K31: =IF(B31,J31/B31,"") -> 2.031110612
A32: KS | B32: 51625 | K32: =IF(B32,J32/B32,"") -> 0
A33: MN | B33: 117000 | C33: 5 | D33: 16 | E33: 66 | F33: 559 | G33: 289 | H33: 5847 | I33: 665 | J33: 8003.53 | K33: 0.06840623932
A34: MO | B34: 81625 | K34: 0
A35: MT | B35: 30375 | K35: 0
A36: NE | B36: 29375 | C36: 9 | D36: 73 | E36: 192 | F36: 598 | G36: 745 | H36: 11471 | I36: 2190.27 | J36: 20595.96 | K36: 0.7011390638
A37: ND | B37: 42500 | K37: 0
A38: SD | B38: 24250 | C38: 3 | D38: 17 | E38: 51 | F38: 214 | G38: 233 | H38: 5881 | I38: 537 | J38: 6614.49 | K38: 0.2727624742
A39: TOTAL | B39: =SUM(B31:B38) -> 401250 | C39: =SUM(C31:C38) -> 37 | D39: 302 | E39: 598 | F39: 8250 | G39: 3096 | H39: 35024 | I39: 10255.03 | J39: 84976.19 | K39: 0.2117786667
A40: SUPREME HOSPITAL DISTRICT#5 - Gordon Lam
A41: AR | B41: 37250 | C41: 2 | D41: 8 | E41: 8 | F41: 30 | G41: 31 | H41: 480 | I41: 136 | J41: 890.98 | K41: =IF(B41,J41/B41,"") -> 0.02391892617
A42: CO | B42: 48750 | K42: =IF(B42,J42/B42,"") -> 0
A43: EURO | B43: 21000 | K43: 0
A44: NM | B44: 47125 | C44: 5 | D44: 22 | E44: 37 | F44: 428 | G44: 227 | H44: 5548 | I44: 1615 | J44: 7419.37 | K44: 0.1574402122
A45: OK | B45: 29625 | K45: 0
A46: TX | B46: 136375 | C46: 15 | D46: 100 | E46: 193 | F46: 828 | G46: 609 | H46: 8747 | I46: 3008.67 | J46: 17966.2 | K46: 0.1317411549
A47: WY | B47: 0
A48: TOTAL | B48: =SUM(B41:B47) -> 320125 | C48: =SUM(C41:C47) -> 22 | D48: 130 | E48: 238 | F48: 1286 | G48: 867 | H48: 14775 | I48: 4759.67 | J48: 26276.55 | K48: 0.08208215541
A49: SUPREME HOSPITAL DISTRICT#6 - Vaughn Gates
A50: AK | B50: 11250 | C50: 3 | D50: 3 | E50: 3 | F50: 16 | G50: 9 | H50: 90 | I50: 0 | J50: 215.55 | K50: =IF(B50,J50/B50,"") -> 0.01916
A51: AZ | B51: 95000 | C51: 8 | D51: 149 | E51: 200 | F51: 2197 | G51: 847.5 | H51: 7485 | I51: 3115.84 | J51: 23274.87 | K51: =IF(B51,J51/B51,"") -> 0.2449986316
A52: CA | B52: 188750 | C52: 214 | D52: 361 | E52: 594 | F52: 4155 | G52: 4422.75 | H52: 45116.6 | I52: 29487.5 | J52: 135536.84 | K52: 0.7180759735
A53: HI | B53: 5250 | K53: 0
A54: ID | B54: 5750 | K54: 0
A55: NV | B55: 25500 | C55: 9 | D55: 24 | E55: 23 | F55: 1834 | G55: 114 | H55: 312 | I55: 35 | J55: 2649.38 | K55: 0.1038972549
A56: OR | B56: 81125 | C56: 8 | D56: 87 | E56: 54 | F56: 371 | G56: 466 | H56: 10782 | I56: 795.46 | J56: 12813.24 | K56: 0.1579444068
A57: PAC | B57: 129625 | K57: 0
A58: WA | B58: 64500 | C58: 2 | D58: 17 | E58: 26 | F58: 26 | G58: 189 | H58: 1152 | I58: 46.25 | J58: 4469.48 | K58: 0.06929426357
A59: TOTAL | B59: =SUM(B50:B58) -> 606750 | C59: =SUM(C50:C58) -> 244 | D59: 641 | E59: 900 | F59: 8599 | G59: 6048.25 | H59: 64937.6 | I59: 33480.05 | J59: 178959.36 | K59: 0.2949474413
A60: SUPREME HOSPITAL DISTRICT#7 - Kenneth Eith
A61: CT | B61: 0 | K61: =IF(B61,J61/B61,"") -> 
A62: ME | B62: 0 | K62: =IF(B62,J62/B62,"") -> 
A63: MA | B63: 21500 | K63: 0
A64: NH | B64: 23750 | K64: 0
A65: NJ | B65: 69000 | K65: 0
A66: NY | B66: 48250 | K66: 0
A67: TOTAL | B67: =SUM(B61:B66) -> 162500 | C67: =SUM(C61:C66) -> 0 | D67: 0 | E67: 0 | F67: 0 | G67: 0 | H67: 0 | I67: 0 | J67: 0 | K67: 0
A68: PUP TENTS NOT IN A GRAND (BLACK DIVISION)
A69: AK#2 | B69: 6750 | C69: 5 | D69: 5 | E69: 6 | F69: 18 | G69: 14 | H69: 190 | I69: 77.84 | J69: 420.14 | K69: =IF(B69,J69/B69,"") -> 0.06224296296
A70: AK#3 | B70: 4500 | K70: =IF(B70,J70/B70,"") -> 0
A71: AL#13 | B71: 11500 | K71: =IF(B71,J71/B71,"") -> 0
A72: DC#1 | B72: 6750 | K72: =IF(B72,J72/B72,"") -> 0
A73: HI#1 | B73: 5250 | K73: 0
A74: ID#3 | B74: 5750 | K74: 0
A75: MA#14 | B75: 10750 | K75: 0
A76: MA#34 | B76: 4250 | K76: 0
A77: MA#52 | B77: 6500 | K77: 0
A78: NV#2 | B78: 15000 | K78: 0
A79: NV#3 | B79: 5250 | K79: 0
A80: NV#5 | B80: 5250 | K80: 0
A81: Supreme | B81: 3250 | K81: 0
A82: WV#6 | B82: 12500 | K82: 0
A83: TOTAL | B83: =SUM(B69:B82) -> 103250 | C83: 5 | D83: 5 | E83: 6 | F83: 18 | G83: 14 | H83: 190 | I83: 77.84 | J83: 420.14 | K83: 0.004069152542
A84: Supreme Total
B85: =B11+B21+B29+B39+B48+B59+B67 -> 2747109 | C85: =C11+C21+C29+C39+C48+C59+C67+C81 -> 804 | D85: 2538 | E85: 4765 | F85: 39880 | G85: 21644.35 | H85: 231247.6 | I85: 92997.14 | J85: 613352.44 | K85: =IF(B85,J85/B85,"") -> 0.2232719706
A86: DIVISION STANDINGS
C87: GOLD | D87: (1000+) | G87: BLUE | H87: (200-299)
C88: SILVER | D88: (600-999) | G88: GREEN | H88: (126-199)
C89: RED | D89: (400-599) | G89: PURPLE | H89: 125 or less
C90: WHITE | D90: (300-399) | G90: BLACK
A92: Telephone: 573-757-5046 Olin Parks, olinparks@sbcglobal.net

Sheet Courier Report
A1: MOC SUPREME HOSPITAL REPORT
A2: ='Web Report'!A2:K2 -> Date: 9/15/2017
A3: Grand | B3: Goal | C3: Reports | D3: Cooties | E3: Total Monies | F3: Percentage
A4: SUPREME HOSPITAL DISTRICT#1 - Gary Dressel
A5: DE | B5: ='Web Report'!B5 -> 32000 | C5: ='Web Report'!C5 -> 6 | D5: ='Web Report'!E5 -> 58 | E5: ='Web Report'!J5 -> 6558.45 | F5: =IF(B5,E5/B5,"") -> 0.2049515625
A6: DC | B6: ='Web Report'!B6 -> 0 | C6: ='Web Report'!C6 -> 0 | D6: ='Web Report'!E6 -> 0 | E6: ='Web Report'!J6 -> 0
A7: MD | B7: ='Web Report'!B7 -> 81000 | C7: ='Web Report'!C7 -> 17 | D7: ='Web Report'!E7 -> 194 | E7: ='Web Report'!J7 -> 27273.83 | F7: 0.3367139506
A8: PA | B8: ='Web Report'!B8 -> 127250 | C8: ='Web Report'!C8 -> 3 | D8: ='Web Report'!E8 -> 67 | E8: ='Web Report'!J8 -> 8410.56 | F8: 0.06609477407
A9: VA | B9: ='Web Report'!B9 -> 88000 | C9: ='Web Report'!C9 -> 6 | D9: ='Web Report'!E9 -> 101 | E9: ='Web Report'!J9 -> 12911.57 | F9: 0.1467223864
A10: WV | B10: ='Web Report'!B10 -> 12500 | C10: ='Web Report'!C10 -> 3 | D10: ='Web Report'!E10 -> 35 | E10: ='Web Report'!J10 -> 7021.95 | F10: 0.561756
A11: TOTALS | B11: =SUM(B5:B10) -> 340750 | C11: =SUM(C5:C10) -> 35 | D11: =SUM(D5:D10) -> 455 | E11: =SUM(E5:E10) -> 62176.36 | F11: 0.1824691416
A12: SUPREME HOSPITAL DISTRICT#2 - Louis C. McVey
A13: AL | B13: ='Web Report'!B13 -> 11500 | C13: ='Web Report'!C13 -> 0 | D13: ='Web Report'!E13 -> 0 | E13: ='Web Report'!J13 -> 0 | F13: =IF(B13,E13/B13,"") -> 0
A14: FL | B14: ='Web Report'!B14 -> 168125 | C14: ='Web Report'!C14 -> 20 | D14: ='Web Report'!E14 -> 270 | E14: ='Web Report'!J14 -> 31453.38 | F14: 0.1870833011
A15: GA | B15: ='Web Report'!B15 -> 1359 | C15: ='Web Report'!C15 -> 0 | D15: ='Web Report'!E15 -> 0 | E15: ='Web Report'!J15 -> 0 | F15: 0
A16: LA | B16: ='Web Report'!B16 -> 27750 | C16: ='Web Report'!C16 -> 0 | D16: ='Web Report'!E16 -> 0 | E16: ='Web Report'!J16 -> 0 | F16: 0
A17: MS | B17: ='Web Report'!B17 -> 54000 | C17: ='Web Report'!C17 -> 6 | D17: ='Web Report'!E17 -> 178 | E17: ='Web Report'!J17 -> 21007.17 | F17: 0.3890216667
A18: NC | B18: ='Web Report'!B18 -> 72250 | C18: ='Web Report'!C18 -> 7 | D18: ='Web Report'!E18 -> 162 | E18: ='Web Report'!J18 -> 9720.04 | F18: 0.1345334256
A19: SC | B19: ='Web Report'!B19 -> 52250 | C19: ='Web Report'!C19 -> 15 | D19: ='Web Report'!E19 -> 306 | E19: ='Web Report'!J19 -> 28747.27 | F19: 0.5501869856
A20: TN | B20: ='Web Report'!B20 -> 51125 | C20: ='Web Report'!C20 -> 0 | D20: ='Web Report'!E20 -> 0 | E20: ='Web Report'!J20 -> 0 | F20: 0
A21: TOTALS | B21: =SUM(B13:B20) -> 438359 | C21: =SUM(C13:C20) -> 48 | D21: =SUM(D13:D20) -> 916 | E21: =SUM(E13:E20) -> 90927.86 | F21: 0.2074278388
A22: SUPREME HOSPITAL DISTRICT#3 - Jeff Keen
A23: IL | B23: ='Web Report'!B23 -> 68625 | C23: ='Web Report'!C23 -> 17 | D23: ='Web Report'!E23 -> 155 | E23: ='Web Report'!J23 -> 16775.27 | F23: =IF(B23,E23/B23,"") -> 0.2444483789
A24: IN | B24: ='Web Report'!B24 -> 0 | C24: ='Web Report'!C24 -> 0 | D24: ='Web Report'!E24 -> 0 | E24: ='Web Report'!J24 -> 0
A25: KY | B25: ='Web Report'!B25 -> 48375 | C25: ='Web Report'!C25 -> 7 | D25: ='Web Report'!E25 -> 40 | E25: ='Web Report'!J25 -> 3809.15 | F25: 0.07874211886
A26: MI | B26: ='Web Report'!B26 -> 62375 | C26: ='Web Report'!C26 -> 9 | D26: ='Web Report'!E26 -> 44 | E26: ='Web Report'!J26 -> 23714.9 | F26: 0.3801987976
A27: OH | B27: ='Web Report'!B27 -> 203000 | C27: ='Web Report'!C27 -> 352 | D27: ='Web Report'!E27 -> 1037 | E27: ='Web Report'!J27 -> 70322.25 | F27: 0.3464150246
A28: WI | B28: ='Web Report'!B28 -> 95000 | C28: ='Web Report'!C28 -> 33 | D28: ='Web Report'!E28 -> 382 | E28: ='Web Report'!J28 -> 55414.55 | F28: 0.5833110526
A29: TOTALS | B29: =SUM(B23:B28) -> 477375 | C29: =SUM(C23:C28) -> 418 | D29: =SUM(D23:D28) -> 1658 | E29: =SUM(E23:E28) -> 170036.12 | F29: 0.3561898298
A30: SUPREME HOSPITAL DISTRICT#4 - Neil Johnson
A31: IA | B31: ='Web Report'!B31 -> 24500 | C31: ='Web Report'!C31 -> 20 | D31: ='Web Report'!E31 -> 289 | E31: ='Web Report'!J31 -> 49762.21 | F31: =IF(B31,E31/B31,"") -> 2.031110612
A32: KS | B32: ='Web Report'!B32 -> 51625 | C32: ='Web Report'!C32 -> 0 | D32: ='Web Report'!E32 -> 0 | E32: ='Web Report'!J32 -> 0 | F32: 0
A33: MN | B33: ='Web Report'!B33 -> 117000 | C33: ='Web Report'!C33 -> 5 | D33: ='Web Report'!E33 -> 66 | E33: ='Web Report'!J33 -> 8003.53 | F33: 0.06840623932
A34: MO | B34: ='Web Report'!B34 -> 81625 | C34: ='Web Report'!C34 -> 0 | D34: ='Web Report'!E34 -> 0 | E34: ='Web Report'!J34 -> 0 | F34: 0
A35: MT | B35: ='Web Report'!B35 -> 30375 | C35: ='Web Report'!C35 -> 0 | D35: ='Web Report'!E35 -> 0 | E35: ='Web Report'!J35 -> 0 | F35: 0
A36: NE | B36: ='Web Report'!B36 -> 29375 | C36: ='Web Report'!C36 -> 9 | D36: ='Web Report'!E36 -> 192 | E36: ='Web Report'!J36 -> 20595.96 | F36: 0.7011390638
A37: ND | B37: ='Web Report'!B37 -> 42500 | C37: ='Web Report'!C37 -> 0 | D37: ='Web Report'!E37 -> 0 | E37: ='Web Report'!J37 -> 0 | F37: 0
A38: SD | B38: ='Web Report'!B38 -> 24250 | C38: ='Web Report'!C38 -> 3 | D38: ='Web Report'!E38 -> 51 | E38: ='Web Report'!J38 -> 6614.49 | F38: 0.2727624742
A39: TOTAL | B39: =SUM(B31:B38) -> 401250 | C39: =SUM(C31:C38) -> 37 | D39: =SUM(D31:D38) -> 598 | E39: =SUM(E31:E38) -> 84976.19 | F39: 0.2117786667
A40: SUPREME HOSPITAL DISTRICT#5 - Gordon Lam
A41: AR | B41: ='Web Report'!B41 -> 37250 | C41: ='Web Report'!C41 -> 2 | D41: ='Web Report'!E41 -> 8 | E41: ='Web Report'!J41 -> 890.98 | F41: =IF(B41,E41/B41,"") -> 0.02391892617
A42: CO | B42: ='Web Report'!B42 -> 48750 | C42: ='Web Report'!C42 -> 0 | D42: ='Web Report'!E42 -> 0 | E42: ='Web Report'!J42 -> 0 | F42: 0
A43: EURO | B43: ='Web Report'!B43 -> 21000 | C43: ='Web Report'!C43 -> 0 | D43: ='Web Report'!E43 -> 0 | E43: ='Web Report'!J43 -> 0 | F43: 0
A44: NM | B44: ='Web Report'!B44 -> 47125 | C44: ='Web Report'!C44 -> 5 | D44: ='Web Report'!E44 -> 37 | E44: ='Web Report'!J44 -> 7419.37 | F44: 0.1574402122
A45: OK | B45: ='Web Report'!B45 -> 29625 | C45: ='Web Report'!C45 -> 0 | D45: ='Web Report'!E45 -> 0 | E45: ='Web Report'!J45 -> 0 | F45: 0
A46: TX | B46: ='Web Report'!B46 -> 136375 | C46: ='Web Report'!C46 -> 15 | D46: ='Web Report'!E46 -> 193 | E46: ='Web Report'!J46 -> 17966.2 | F46: 0.1317411549
A47: WY | B47: ='Web Report'!B47 -> 0 | C47: ='Web Report'!C47 -> 0 | D47: ='Web Report'!E47 -> 0 | E47: ='Web Report'!J47 -> 0
A48: TOTAL | B48: =SUM(B41:B47) -> 320125 | C48: =SUM(C41:C47) -> 22 | D48: =SUM(D41:D47) -> 238 | E48: =SUM(E41:E47) -> 26276.55 | F48: 0.08208215541
A49: SUPREME HOSPITAL DISTRICT#6 - Vaughn Gates
A50: AK | B50: ='Web Report'!B50 -> 11250 | C50: ='Web Report'!C50 -> 3 | D50: ='Web Report'!E50 -> 3 | E50: ='Web Report'!J50 -> 215.55 | F50: =IF(B50,E50/B50,"") -> 0.01916
A51: AZ | B51: ='Web Report'!B51 -> 95000 | C51: ='Web Report'!C51 -> 8 | D51: ='Web Report'!E51 -> 200 | E51: ='Web Report'!J51 -> 23274.87 | F51: 0.2449986316
A52: CA | B52: ='Web Report'!B52 -> 188750 | C52: ='Web Report'!C52 -> 214 | D52: ='Web Report'!E52 -> 594 | E52: ='Web Report'!J52 -> 135536.84 | F52: 0.7180759735
A53: HI | B53: ='Web Report'!B53 -> 5250 | C53: ='Web Report'!C53 -> 0 | D53: ='Web Report'!E53 -> 0 | E53: ='Web Report'!J53 -> 0 | F53: 0
A54: ID | B54: ='Web Report'!B54 -> 5750 | C54: ='Web Report'!C54 -> 0 | D54: ='Web Report'!E54 -> 0 | E54: ='Web Report'!J54 -> 0 | F54: 0
A55: NV | B55: ='Web Report'!B55 -> 25500 | C55: ='Web Report'!C55 -> 9 | D55: ='Web Report'!E55 -> 23 | E55: ='Web Report'!J55 -> 2649.38 | F55: 0.1038972549
A56: OR | B56: ='Web Report'!B56 -> 81125 | C56: ='Web Report'!C56 -> 8 | D56: ='Web Report'!E56 -> 54 | E56: ='Web Report'!J56 -> 12813.24 | F56: 0.1579444068
A57: PAC | B57: ='Web Report'!B57 -> 129625 | C57: ='Web Report'!C57 -> 0 | D57: ='Web Report'!E57 -> 0 | E57: ='Web Report'!J57 -> 0 | F57: 0
A58: WA | B58: ='Web Report'!B58 -> 64500 | C58: ='Web Report'!C58 -> 2 | D58: ='Web Report'!E58 -> 26 | E58: ='Web Report'!J58 -> 4469.48 | F58: 0.06929426357
A59: TOTAL | B59: =SUM(B50:B58) -> 606750 | C59: =SUM(C50:C58) -> 244 | D59: =SUM(D50:D58) -> 900 | E59: =SUM(E50:E58) -> 178959.36 | F59: 0.2949474413
A60: SUPREME HOSPITAL DISTRICT#7 - Kenneth Eith
A61: CT | B61: ='Web Report'!B61 -> 0 | C61: ='Web Report'!C61 -> 0 | D61: ='Web Report'!E61 -> 0 | E61: ='Web Report'!J61 -> 0 | F61: =IF(B61,E61/B61,"") -> 
A62: ME | B62: ='Web Report'!B62 -> 0 | C62: ='Web Report'!C62 -> 0 | D62: ='Web Report'!E62 -> 0 | E62: ='Web Report'!J62 -> 0
A63: MA | B63: ='Web Report'!B63 -> 21500 | C63: ='Web Report'!C63 -> 0 | D63: ='Web Report'!E63 -> 0 | E63: ='Web Report'!J63 -> 0 | F63: 0
A64: NH | B64: ='Web Report'!B64 -> 23750 | C64: ='Web Report'!C64 -> 0 | D64: ='Web Report'!E64 -> 0 | E64: ='Web Report'!J64 -> 0 | F64: 0
A65: NJ | B65: ='Web Report'!B65 -> 69000 | C65: ='Web Report'!C65 -> 0 | D65: ='Web Report'!E65 -> 0 | E65: ='Web Report'!J65 -> 0 | F65: 0
A66: NY | B66: ='Web Report'!B66 -> 48250 | C66: ='Web Report'!C66 -> 0 | D66: ='Web Report'!E66 -> 0 | E66: ='Web Report'!J66 -> 0 | F66: 0
A67: TOTAL | B67: =SUM(B61:B66) -> 162500 | C67: =SUM(C61:C66) -> 0 | D67: =SUM(D61:D66) -> 0 | E67: =SUM(E61:E66) -> 0 | F67: 0
A68: PUP TENTS NOT IN A GRAND (BLACK DIVISION)
A69: AK#2 | B69: ='Web Report'!B69 -> 6750 | C69: ='Web Report'!C69 -> 5 | D69: ='Web Report'!E69 -> 6 | E69: ='Web Report'!J69 -> 420.14 | F69: =IF(B69,E69/B69,"") -> 0.06224296296
A70: AK#3 | B70: ='Web Report'!B70 -> 4500 | C70: ='Web Report'!C70 -> 0 | D70: ='Web Report'!E70 -> 0 | E70: ='Web Report'!J70 -> 0 | F70: 0
A71: AL#13 | B71: ='Web Report'!B71 -> 11500 | C71: ='Web Report'!C71 -> 0 | D71: ='Web Report'!E71 -> 0 | E71: ='Web Report'!J71 -> 0 | F71: 0
A72: DC#1 | B72: ='Web Report'!B72 -> 6750 | C72: ='Web Report'!C72 -> 0 | D72: ='Web Report'!E72 -> 0 | E72: ='Web Report'!J72 -> 0 | F72: 0
A74: HI#1 | B74: ='Web Report'!B73 -> 5250 | C74: ='Web Report'!C73 -> 0 | D74: ='Web Report'!E73 -> 0 | E74: ='Web Report'!J73 -> 0 | F74: 0
A75: ID#3 | B75: ='Web Report'!B74 -> 5750 | C75: ='Web Report'!C74 -> 0 | D75: ='Web Report'!E74 -> 0 | E75: ='Web Report'!J74 -> 0 | F75: 0
A76: MA#14 | B76: ='Web Report'!B75 -> 10750 | C76: ='Web Report'!C75 -> 0 | D76: ='Web Report'!E75 -> 0 | E76: ='Web Report'!J75 -> 0 | F76: 0
A77: MA#34 | B77: ='Web Report'!B76 -> 4250 | C77: ='Web Report'!C76 -> 0 | D77: ='Web Report'!E76 -> 0 | E77: ='Web Report'!J76 -> 0 | F77: 0
A78: MA#52 | B78: ='Web Report'!B77 -> 6500 | C78: ='Web Report'!C77 -> 0 | D78: ='Web Report'!E77 -> 0 | E78: ='Web Report'!J77 -> 0 | F78: 0
A79: Supreme | B79: ='Web Report'!B81 -> 3250 | C79: ='Web Report'!C81 -> 0 | D79: ='Web Report'!E81 -> 0 | E79: ='Web Report'!J81 -> 0 | F79: 0
A80: WV#6 | B80: ='Web Report'!B82 -> 12500 | C80: ='Web Report'!C82 -> 0 | D80: ='Web Report'!E82 -> 0 | E80: ='Web Report'!J82 -> 0 | F80: 0
A81: TOTAL | B81: =SUM(B69:B80) -> 77750 | C81: =SUM(C69:C80) -> 5 | D81: =SUM(D69:D80) -> 6 | E81: =SUM(E69:E80) -> 420.14 | F81: 0.005403729904
A82: Supreme Total
B83: =B11+B21+B29+B39+B48+B59+B67 -> 2747109 | C83: =C11+C21+C29+C39+C48+C59+C67+C79 -> 804 | D83: =D11+D21+D29+D39+D48+D59+D67+D79 -> 4765 | E83: =E11+E21+E29+E39+E48+E59+E67+E79 -> 613352.44 | F83: =IF(B83,E83/B83,"") -> 0.2232719706
A84: DIVISION STANDINGS
A85: GOLD | B85: ='Web Report'!E87 -> 0 | C85: ='Web Report'!F87 -> 0 | D85: BLUE | E85: ='Web Report'!I87 -> 0 | F85: ='Web Report'!J87 -> 0
A86: SILVER | B86: ='Web Report'!E88 -> 0 | C86: ='Web Report'!F88 -> 0 | D86: GREEN | E86: ='Web Report'!I88 -> 0 | F86: ='Web Report'!J88 -> 0
A87: RED | B87: ='Web Report'!E89 -> 0 | C87: ='Web Report'!F89 -> 0 | D87: PURPLE | E87: ='Web Report'!I89 -> 0 | F87: ='Web Report'!J89 -> 0
A88: WHITE | B88: ='Web Report'!E90 -> 0 | C88: ='Web Report'!F90 -> 0 | D88: BLACK | E88: ='Web Report'!I90 -> 0 | F88: ='Web Report'!J90 -> 0
A90: Telephone: 573-757-5046, Olin Parks
